[Event "RUS-ch Women Blitz 2019"]
[Site "Sochi"]
[Date "2019.10.17"]
[Round "15.6"]
[White "Charochkina, Daria"]
[Black "Guseva, Marina"]
[Result "0-1"]
[ECO "A01"]
[WhiteElo "2355"]
[BlackElo "2366"]
[Annotator "NA"]
[PlyCount "74"]
[EventDate "2019.10.17"]
[EventType "swiss"]
[EventCountry "RUS"]
[SourceTitle "playchess.com"]
[Source "ChessBase"]
[SourceQuality "1"]
[TimeControl "180+2"]

1. b3 {[%emt 0:00:00]} d5 {[%emt 0:00:00]} 2. Bb2 {[%emt 0:00:00]} c5 {[%emt 0:00:02]} 3. e3 {[%emt 0:00:00]} Nc6 {[%emt 0:00:04]} 4. Bb5 {[%emt 0:00:04]} Bd7 {[%emt 0:00:01]} 5. f4 {[%emt 0:00:02]} a6 {[%emt 0:00:06]} 6. Bxc6 {[%emt 0:00:02]} Bxc6 {[%emt 0:00:01]} 7. Nf3 {[%emt 0:00:01]} f6 {[%emt 0:00:01]} 8. O-O {[%emt 0:00:02]} e6 {[%emt 0:00:01]} 9. f5 {[%emt 0:00:43]} exf5 {[%emt 0:00:16]} 10. Nh4 {[%emt 0:00:56]} g6 {[%emt 0:00:01]} 11. Qf3 {[%emt 0:00:01]} Qd7 {[%emt 0:00:21]} 12. Qh3 {[%emt 0:00:10]} Bg7 {[%emt 0:00:14]} 13. Nc3 {[%emt 0:00:12]} Ne7 {[%emt 0:00:02]} 14. Rae1 {[%emt 0:00:04]} O-O {[%emt 0:00:05]} 15. Nd1 {[%emt 0:00:09]} Rae8 {[%emt 0:00:07]} 16. Nf2 {[%emt 0:00:01]} Nc8 {[%emt 0:00:04]} 17. Nd3 {[%emt 0:00:01]} b6 {[%emt 0:00:01]} 18. a4 {[%emt 0:00:02]} a5 {[%emt 0:00:09]} 19. Nf4 {[%emt 0:00:07]} g5 {[%emt 0:01:14]} 20. Nxf5 {[%emt 0:00:02]} gxf4 {[%emt 0:00:01]} 21. Rxf4 {[%emt 0:00:01]} Re4 {[%emt 0:00:16]} 22. Rg4 {[%emt 0:00:37]} Rxg4 {[%emt 0:00:03]} 23. Qxg4 {[%emt 0:00:00]} Nd6 {[%emt 0:00:02]} 24. Nh6+ {[%emt 0:00:09]} Kh8 {[%emt 0:00:01]} 25. Qh4 {[%emt 0:00:01]} d4 {[%emt 0:00:05]} 26. exd4 {[%emt 0:00:03]} cxd4 {[%emt 0:00:05]} 27. Bxd4 {[%emt 0:00:03]} Re8 {[%emt 0:00:04]} 28. Rf1 {[%emt 0:00:04]} Ne4 {[%emt 0:00:04]} 29. c3 {[%emt 0:00:09]} Nxd2 {[%emt 0:00:00]} 30. Rxf6 {[%emt 0:00:00]} Nxb3 {[%emt 0:00:12]} 31. Nf7+ {[%emt 0:00:07]} Kg8 {[%emt 0:00:08]} 32. Nh6+ {[%emt 0:00:01]} Bxh6 {[%emt 0:00:03]} 33. Qxh6 {[%emt 0:00:04]} Nxd4 {[%emt 0:00:08]} 34. Rf1 {[%emt 0:00:07]} Ne2+ {[%emt 0:00:02]} 35. Kh1 {[%emt 0:00:01]} Bxg2+ {[%emt 0:00:02]} 36. Kxg2 {[%emt 0:00:01]} Qd5+ {[%emt 0:00:02]} 37. Rf3 {[%emt 0:00:01]} Nxc3 0-1

[Event "RUS-ch Women Blitz 2019"]
[Site "Sochi"]
[Date "2019.10.17"]
[Round "15.7"]
[White "Kovanova, Baira"]
[Black "Gritsayeva, Oksana"]
[Result "1-0"]
[ECO "A04"]
[WhiteElo "2344"]
[BlackElo "2370"]
[Annotator "NA"]
[PlyCount "83"]
[EventDate "2019.10.17"]
[EventType "swiss"]
[EventCountry "RUS"]
[SourceTitle "playchess.com"]
[Source "ChessBase"]
[SourceQuality "1"]
[TimeControl "180+2"]

1. Nf3 {[%emt 0:00:00]} c5 {[%emt 0:00:00]} 2. g3 {[%emt 0:00:02]} b6 {[%emt 0:00:01]} 3. Bg2 {[%emt 0:00:20]} Bb7 {[%emt 0:00:01]} 4. d3 {[%emt 0:00:02]} Nf6 {[%emt 0:00:02]} 5. e4 {[%emt 0:00:03]} d6 {[%emt 0:00:01]} 6. O-O {[%emt 0:00:04]} e6 {[%emt 0:00:03]} 7. Qe2 {[%emt 0:00:23]} Be7 {[%emt 0:00:01]} 8. Nbd2 {[%emt 0:00:10]} O-O {[%emt 0:00:02]} 9. Re1 {[%emt 0:00:02]} Qc7 {[%emt 0:00:01]} 10. Nf1 {[%emt 0:00:04]} Nc6 {[%emt 0:00:04]} 11. Bf4 {[%emt 0:00:05]} Ne5 {[%emt 0:00:16]} 12. Nxe5 {[%emt 0:00:08]} dxe5 {[%emt 0:00:02]} 13. Be3 {[%emt 0:00:05]} Nd7 {[%emt 0:00:02]} 14. f4 {[%emt 0:00:04]} Qd8 {[%emt 0:00:19]} 15. Nd2 {[%emt 0:00:07]} exf4 {[%emt 0:00:10]} 16. Bxf4 {[%emt 0:00:08]} e5 {[%emt 0:00:06]} 17. Be3 {[%emt 0:00:03]} Bg5 {[%emt 0:00:03]} 18. Nc4 {[%emt 0:00:06]} Bxe3+ 19. Nxe3 {[%emt 0:00:05]} Re8 {[%emt 0:00:15]} 20. Rf1 {[%emt 0:00:02]} Nb8 {[%emt 0:00:12]} 21. Qg4 {[%emt 0:00:07]} Bc8 {[%emt 0:00:06]} 22. Nf5 {[%emt 0:00:04]} Qf6 {[%emt 0:00:19]} 23. Rf2 {[%emt 0:00:09]} Nc6 {[%emt 0:00:10]} 24. Raf1 {[%emt 0:00:07]} Nd4 {[%emt 0:00:07]} 25. Qh5 {[%emt 0:00:21]} Bxf5 {[%emt 0:00:10]} 26. exf5 {[%emt 0:00:02]} Rad8 {[%emt 0:00:03]} 27. g4 {[%emt 0:00:03]} h6 {[%emt 0:00:07]} 28. h4 {[%emt 0:00:02]} c4 {[%emt 0:00:39]} 29. g5 {[%emt 0:00:02]} hxg5 {[%emt 0:00:03]} 30. hxg5 {[%emt 0:00:01]} Qd6 {[%emt 0:00:05]} 31. g6 {[%emt 0:00:02]} Qf6 {[%emt 0:00:06]} 32. Be4 {[%emt 0:00:31]} cxd3 {[%emt 0:00:02]} 33. cxd3 {[%emt 0:00:01]} Kf8 {[%emt 0:00:02]} 34. Rg2 {[%emt 0:00:06]} Ke7 {[%emt 0:00:05]} 35. gxf7 {[%emt 0:00:04]} Rh8 {[%emt 0:00:05]} 36. Qg5 {[%emt 0:00:11]} Kxf7 {[%emt 0:00:05]} 37. Qg6+ {[%emt 0:00:01]} Kf8 {[%emt 0:00:04]} 38. Rc1 {[%emt 0:00:04]} Qxg6 {[%emt 0:00:07]} 39. fxg6 {[%emt 0:00:01]} Ke7 {[%emt 0:00:01]} 40. Rf2 {[%emt 0:00:03]} Ne6 {[%emt 0:00:05]} 41. Rf7+ {[%emt 0:00:01]} Kd6 {[%emt 0:00:00]} 42. Rc6# {[%emt 0:00:00] Kd5} 1-0

[Event "RUS-ch Women Blitz 2019"]
[Site "Sochi"]
[Date "2019.10.17"]
[Round "15.9"]
[White "Borisova, Ekaterina"]
[Black "Styazhkina, Anna"]
[Result "1-0"]
[ECO "D11"]
[WhiteElo "2347"]
[BlackElo "2280"]
[Annotator "NA"]
[PlyCount "44"]
[EventDate "2019.10.17"]
[EventType "swiss"]
[EventCountry "RUS"]
[SourceTitle "playchess.com"]
[Source "ChessBase"]
[SourceQuality "1"]
[TimeControl "180+2"]

1. d4 {[%emt 0:00:00]} d5 {[%emt 0:00:00]} 2. c4 {[%emt 0:00:00]} c6 {[%emt 0:00:00]} 3. Nf3 {[%emt 0:00:01]} Nf6 {[%emt 0:00:01]} 4. g3 {[%emt 0:00:01]} Bg4 {[%emt 0:00:07]} 5. Ne5 {[%emt 0:00:01]} Bf5 {[%emt 0:00:05]} 6. cxd5 {[%emt 0:00:02]} cxd5 {[%emt 0:00:01]} 7. Nc3 {[%emt 0:00:01]} e6 {[%emt 0:00:12]} 8. f3 {[%emt 0:00:07]} Nc6 {[%emt 0:00:17]} 9. g4 {[%emt 0:00:05]} Bg6 {[%emt 0:00:02]} 10. h4 {[%emt 0:00:02]} h6 {[%emt 0:00:33]} 11. Nxg6 {[%emt 0:00:03]} fxg6 {[%emt 0:00:01]} 12. Bf4 {[%emt 0:00:05]} Bd6 {[%emt 0:00:05]} 13. Qd2 {[%emt 0:00:40]} Bxf4 {[%emt 0:00:12]} 14. Qxf4 {[%emt 0:00:02]} O-O {[%emt 0:00:03]} 15. Qd2 {[%emt 0:00:05]} b5 {[%emt 0:00:16]} 16. O-O-O {[%emt 0:00:13]} b4 {[%emt 0:00:05]} 17. Na4 {[%emt 0:00:06]} Nd7 {[%emt 0:00:09]} 18. Kb1 {[%emt 0:00:08]} Qf6 {[%emt 0:00:24]} 19. Bg2 {[%emt 0:00:17]} Rab8 {[%emt 0:00:30]} 20. e4 {[%emt 0:00:08]} Na5 {[%emt 0:00:21]} 21. b3 {[%emt 0:00:12]} Nb6 {[%emt 0:00:05]} 22. Nc5 {[%emt 0:00:05]} Qf7 {[%emt 0:00:07]} 1-0

[Event "RUS-ch Women Blitz 2019"]
[Site "Sochi"]
[Date "2019.10.17"]
[Round "15.10"]
[White "Markelova, Lubov"]
[Black "Vasilevich, Tatjana"]
[Result "0-1"]
[ECO "A05"]
[WhiteElo "2198"]
[BlackElo "2360"]
[Annotator "NA"]
[PlyCount "40"]
[EventDate "2019.10.17"]
[EventType "swiss"]
[EventCountry "RUS"]
[SourceTitle "playchess.com"]
[Source "ChessBase"]
[SourceQuality "1"]
[TimeControl "180+2"]

1. Nf3 {[%emt 0:00:00]} Nf6 2. c4 e6 {[%emt 0:00:04]} 3. e3 {[%emt 0:00:01]} d5 {[%emt 0:00:01]} 4. d4 {[%emt 0:00:02]} Be7 {[%emt 0:00:05]} 5. b3 {[%emt 0:00:02]} O-O {[%emt 0:00:02]} 6. Bd3 {[%emt 0:00:01]} b6 {[%emt 0:00:02]} 7. Nc3 {[%emt 0:00:03]} Bb7 {[%emt 0:00:00]} 8. cxd5 {[%emt 0:00:01]} Nxd5 {[%emt 0:00:10]} 9. Nxd5 {[%emt 0:00:03]} exd5 {[%emt 0:00:02]} 10. O-O {[%emt 0:00:04]} Nd7 {[%emt 0:00:05]} 11. Bb2 {[%emt 0:00:02]} Bd6 {[%emt 0:00:05]} 12. Rc1 {[%emt 0:00:11]} Qe7 {[%emt 0:00:06]} 13. Rc2 {[%emt 0:00:07]} c5 {[%emt 0:00:35]} 14. dxc5 {[%emt 0:00:13]} bxc5 {[%emt 0:00:02]} 15. Qa1 {[%emt 0:00:16]} d4 {[%emt 0:00:09]} 16. Be2 {[%emt 0:00:41]} Ne5 {[%emt 0:00:41]} 17. Nxe5 {[%emt 0:00:58]} Qxe5 {[%emt 0:00:02]} 18. g3 {[%emt 0:00:10]} Qe4 {[%emt 0:00:04]} 19. f3 {[%emt 0:00:13]} Qxc2 {[%emt 0:00:02]} 20. Bc4 {[%emt 0:00:14]} Qg6 {[%emt 0:00:11]} 0-1

[Event "RUS-ch Women Blitz 2019"]
[Site "Sochi"]
[Date "2019.10.17"]
[Round "15.11"]
[White "Bivol, Alina"]
[Black "Yakimova, Mariya"]
[Result "1-0"]
[ECO "A20"]
[WhiteElo "2371"]
[BlackElo "2276"]
[Annotator "NA"]
[PlyCount "81"]
[EventDate "2019.10.17"]
[EventType "swiss"]
[EventCountry "RUS"]
[SourceTitle "playchess.com"]
[Source "ChessBase"]
[SourceQuality "1"]
[TimeControl "180+2"]

1. c4 {[%emt 0:00:00]} e5 {[%emt 0:00:00]} 2. g3 {[%emt 0:00:00]} d6 {[%emt 0:00:00]} 3. Bg2 {[%emt 0:00:04]} f5 {[%emt 0:00:00]} 4. Nc3 {[%emt 0:00:06]} Nf6 {[%emt 0:00:02]} 5. e3 {[%emt 0:00:02]} g6 {[%emt 0:00:03]} 6. Nge2 {[%emt 0:00:02]} Bg7 {[%emt 0:00:01]} 7. O-O {[%emt 0:00:02]} O-O {[%emt 0:00:02]} 8. d3 {[%emt 0:00:01]} Nc6 {[%emt 0:00:04]} 9. Rb1 {[%emt 0:00:01]} Ne7 {[%emt 0:00:12]} 10. b4 {[%emt 0:00:02]} d5 {[%emt 0:00:09]} 11. b5 {[%emt 0:00:14]} dxc4 {[%emt 0:00:28]} 12. dxc4 {[%emt 0:00:01]} Rb8 {[%emt 0:00:18]} 13. Qa4 {[%emt 0:00:05]} Be6 {[%emt 0:00:06]} 14. Rd1 {[%emt 0:00:05]} Qc8 {[%emt 0:00:06]} 15. Ba3 {[%emt 0:00:01]} Re8 {[%emt 0:00:04]} 16. Nd5 {[%emt 0:00:07]} Nexd5 {[%emt 0:00:15]} 17. cxd5 {[%emt 0:00:00]} Bd7 {[%emt 0:00:02]} 18. Qb3 {[%emt 0:00:06]} Kh8 {[%emt 0:00:14]} 19. Nc3 {[%emt 0:00:01]} Qd8 {[%emt 0:00:03]} 20. d6 {[%emt 0:00:07]} c6 {[%emt 0:00:19]} 21. bxc6 {[%emt 0:00:30]} bxc6 {[%emt 0:00:01]} 22. Qxb8 {[%emt 0:00:05]} Qxb8 {[%emt 0:00:01]} 23. Rxb8 {[%emt 0:00:01]} Rxb8 {[%emt 0:00:00]} 24. Na4 {[%emt 0:00:01]} e4 {[%emt 0:00:06]} 25. Nc5 {[%emt 0:00:06]} Rb5 {[%emt 0:00:24]} 26. Nb3 {[%emt 0:00:08]} Nd5 {[%emt 0:00:09]} 27. Bf1 {[%emt 0:00:05]} Rb8 {[%emt 0:00:08]} 28. Nc5 {[%emt 0:00:02]} Nb6 {[%emt 0:00:06]} 29. Ba6 {[%emt 0:00:05]} Bf6 {[%emt 0:00:14]} 30. Rb1 {[%emt 0:00:11]} Kg7 {[%emt 0:00:06]} 31. Kg2 {[%emt 0:00:29]} h6 {[%emt 0:00:03]} 32. Bb2 {[%emt 0:00:15]} Bxb2 {[%emt 0:00:05]} 33. Rxb2 {[%emt 0:00:01]} Kf7 {[%emt 0:00:04]} 34. a4 {[%emt 0:00:06]} Rd8 {[%emt 0:00:05]} 35. a5 {[%emt 0:00:01]} Nd5 {[%emt 0:00:04]} 36. Rb7 {[%emt 0:00:09]} Nf6 {[%emt 0:00:01]} 37. Rxa7 {[%emt 0:00:03]} Ke8 {[%emt 0:00:04]} 38. Bc4 {[%emt 0:00:04]} Rb8 {[%emt 0:00:02]} 39. Be6 {[%emt 0:00:10]} Bxe6 {[%emt 0:00:01]} 40. Nxe6 {[%emt 0:00:01]} Rb1 {[%emt 0:00:03]} 41. Re7# {[%emt 0:00:02]} 1-0

[Event "RUS-ch Women Blitz 2019"]
[Site "Sochi"]
[Date "2019.10.17"]
[Round "15.12"]
[White "Afonasieva, Anna"]
[Black "Lysenko, Margarita"]
[Result "0-1"]
[ECO "E15"]
[WhiteElo "2312"]
[BlackElo "2243"]
[Annotator "NA RC"]
[PlyCount "128"]
[EventDate "2019.10.17"]
[EventType "swiss"]
[EventCountry "RUS"]
[SourceTitle "playchess.com"]
[Source "ChessBase"]
[SourceQuality "1"]
[TimeControl "180+2"]

1. d4 {[%emt 0:00:00]} Nf6 {[%emt 0:00:00]} 2. Nf3 {[%emt 0:00:00]} e6 {[%emt 0:00:00]} 3. c4 {[%emt 0:00:01]} b6 {[%emt 0:00:02]} 4. g3 {[%emt 0:00:01]} Ba6 {[%emt 0:00:00]} 5. b3 {[%emt 0:00:01]} Bb4+ {[%emt 0:00:03]} 6. Bd2 {[%emt 0:00:01]} Be7 {[%emt 0:00:01]} 7. Bg2 {[%emt 0:00:01]} c6 {[%emt 0:00:01]} 8. O-O {[%emt 0:00:03]} d5 {[%emt 0:00:03]} 9. Qc2 {[%emt 0:00:01]} O-O {[%emt 0:00:05]} 10. Bf4 {[%emt 0:00:01]} Nbd7 {[%emt 0:00:30]} 11. Nbd2 {[%emt 0:00:02]} Rc8 {[%emt 0:00:07]} 12. e4 {[%emt 0:00:22]} c5 {[%emt 0:00:17]} 13. exd5 {[%emt 0:00:18]} exd5 {[%emt 0:00:07]} 14. Rfe1 {[%emt 0:00:12]} Re8 {[%emt 0:00:23]} 15. Qb2 {[%emt 0:00:49]} cxd4 {[%emt 0:00:06]} 16. Nxd4 {[%emt 0:00:03]} Nc5 {[%emt 0:00:01]} 17. Qa3 {[%emt 0:00:30]} Bb7 {[%emt 0:00:17]} 18. b4 {[%emt 0:00:15]} Na6 {[%emt 0:00:07]} 19. Nc2 {[%emt 0:00:05]} Bf8 {[%emt 0:00:33]} 20. Qb2 {[%emt 0:00:11]} Ba8 {[%emt 0:00:16]} 21. Bg5 {[%emt 0:00:25]} dxc4 {[%emt 0:00:06]} 22. Rxe8 {[%emt 0:00:08]} Qxe8 {[%emt 0:00:02]} 23. Bxf6 {[%emt 0:00:02]} gxf6 {[%emt 0:00:03]} 24. Qxf6 {[%emt 0:00:04]} Bg7 {[%emt 0:00:01]} 25. Qg5 {[%emt 0:00:00]} Bxg2 {[%emt 0:00:04]} 26. Kxg2 {[%emt 0:00:01]} Kh8 {[%emt 0:00:05]} 27. Re1 {[%emt 0:00:02]} Qc6+ {[%emt 0:00:14]} 28. Nf3 {[%emt 0:00:02]} Nc7 {[%emt 0:00:04]} 29. Re7 {[%emt 0:00:02]} Ne6 {[%emt 0:00:04]} 30. Qg4 {[%emt 0:00:01]} Rf8 {[%emt 0:00:06]} 31. Kg1 {[%emt 0:00:04]} a5 {[%emt 0:00:04]} 32. bxa5 {[%emt 0:00:03]} bxa5 {[%emt 0:00:01]} 33. Ne3 {[%emt 0:00:01]} c3 {[%emt 0:00:03]} 34. Ne1 {[%emt 0:00:04]} Qd6 {[%emt 0:00:05]} 35. Nf5 {[%emt 0:00:01]} Qe5 {[%emt 0:00:04]} 36. Nd3 {[%emt 0:00:02]} Qf6 {[%emt 0:00:02]} 37. Rd7 {[%emt 0:00:02]} Qg6 {[%emt 0:00:02]} 38. Qf3 {[%emt 0:00:01]} Ng5 {[%emt 0:00:03]} 39. Qf4 {[%emt 0:00:02]} Ne6 {[%emt 0:00:01]} 40. Qf3 {[%emt 0:00:01]} c2 {[%emt 0:00:01]} 41. Rd6 {[%emt 0:00:02]} Ng5 {[%emt 0:00:02]} 42. Qe2 {[%emt 0:00:02]} f6 {[%emt 0:00:02]} 43. Qxc2 {[%emt 0:00:01]} Nf3+ {[%emt 0:00:02]} 44. Kg2 {[%emt 0:00:02]} Qxf5 {[%emt 0:00:01]} 45. Rc6 {[%emt 0:00:02]} Qxd3 {[%emt 0:00:03]} 46. Qxd3 {[%emt 0:00:02]} Ne1+ {[%emt 0:00:00]} 47. Kf1 {[%emt 0:00:01]} Nxd3 {[%emt 0:00:01]} 48. Ra6 {[%emt 0:00:01]} f5 {[%emt 0:00:05]} 49. Rxa5 {[%emt 0:00:01]} Nb4 {[%emt 0:00:02]} 50. a3 {[%emt 0:00:01]} Nc2 {[%emt 0:00:01]} 51. Ra7 {[%emt 0:00:02]} f4 {[%emt 0:00:01]} 52. a4 {[%emt 0:00:02]} h6 {[%emt 0:00:02]} 53. a5 {[%emt 0:00:01]} fxg3 {[%emt 0:00:01]} 54. hxg3 {[%emt 0:00:01]} Rxf2+ {[%emt 0:00:05]} 55. Kg1 {[%emt 0:00:02]} Rd2 {[%emt 0:00:03]} 56. Ra8+ {[%emt 0:00:01]} Kh7 {[%emt 0:00:01]} 57. a6 {[%emt 0:00:00]} Bd4+ {[%emt 0:00:02]} 58. Kh1 {[%emt 0:00:02]} Ne3 {[%emt 0:00:02]} 59. a7 {[%emt 0:00:02]} Ra2 {[%emt 0:00:02]} 60. Rd8 {[%emt 0:00:01]} Bxa7 {[%emt 0:00:02]} 61. Rd7+ {[%emt 0:00:02]} Kg6 {[%emt 0:00:01]} 62. Rd6+ {[%emt 0:00:01]} Kg5 {[%emt 0:00:00]} 63. Re6 {[%emt 0:00:01]} Nf5 {[%emt 0:00:05]} 64. Rc6 {[%emt 0:00:02]} Nxg3# {[%emt 0:00:01]} 0-1